bitfinex/quotes_BTCUSD_20250723
["timestamp","ask_amount","ask_price","bid_price","bid_amount"]
[1753276588384,0.17538571,118170.0,118160.0,0.23482496]
[1753276588703,0.80309891,118170.0,118160.0,0.37535201]
[1753276588829,0.79463689,118170.0,118160.0,0.20609]
[1753276589029,0.79463689,118170.0,118160.0,0.14899]
[1753276589435,0.79658689,118170.0,118160.0,0.14899]
[1753276589680,0.7913148,118170.0,118160.0,0.14692]
[1753276590696,0.7913148,118170.0,118160.0,0.14792]
[1753276590856,0.7913148,118170.0,118160.0,0.14999]
[1753276591457,0.73617224,118170.0,118160.0,0.31925201]
[1753276591665,0.16692426,118170.0,118160.0,0.40446043]
[1753276591871,0.17538657,118170.0,118160.0,0.42190945]
[1753276592140,0.34463426,118170.0,118160.0,0.42190945]
[1753276592357,0.16692383,118170.0,118160.0,0.42190945]
[1753276592568,0.18384795,118170.0,118160.0,0.42190945]
[1753276592776,0.17538571,118170.0,118160.0,0.42190945]
[1753276592987,0.19231004,118170.0,118160.0,0.42190945]
[1753276593132,0.19230996,118170.0,118160.0,0.42190945]
[1753276593765,0.3530962,118170.0,118160.0,0.41344686]
[1753276594017,0.7530962,118170.0,118160.0,0.4219096]
[1753276594165,0.7530962,118170.0,118160.0,0.43037227]
[1753276594647,0.82911148,118170.0,118160.0,0.41344686]
[1753276595090,0.82064939,118170.0,118160.0,0.34516405]
[1753276595292,0.82259939,118170.0,118160.0,0.34516405]
[1753276595925,0.81732723,118170.0,118160.0,0.01844902]
[1753276596204,0.81732723,118170.0,118160.0,0.1476]
[1753276596205,0.55960453,118170.0,118160.0,0.1476]
[1753276596408,0.55960453,118170.0,118160.0,0.16504902]
[1753276596620,0.70620453,118170.0,118160.0,0.01844902]
[1753276597064,1.21230602,118170.0,118160.0,0.001]
[1753276597275,1.55230602,118170.0,118160.0,0.001]
[1753276597906,0.33620346,118150.0,118140.0,0.0174952]
[1753276598103,0.69115858,118150.0,118140.0,0.0174952]
[1753276598325,0.69434858,118150.0,118140.0,0.0174952]
[1753276601108,0.63784858,118150.0,118140.0,0.0174952]
[1753276601313,0.63784858,118150.0,118140.0,0.0184952]
[1753276601932,0.42582076,118150.0,118140.0,0.0205652]
[1753276602145,0.4291445,118150.0,118140.0,0.35330464]
[1753276602396,0.47774008,118150.0,118140.0,0.1670852]
[1753276602613,0.48288008,118150.0,118140.0,0.1650152]
[1753276602817,0.62415738,118150.0,118140.0,0.0184952]
[1753276603032,0.85863468,118150.0,118140.0,0.0184952]
[1753276603183,1.21473617,118150.0,118140.0,0.0184952]
[1753276603394,1.21473617,118150.0,118140.0,0.00104618]
[1753276603796,0.85863468,118150.0,118140.0,0.00104618]
[1753276604138,1.21473617,118150.0,118140.0,0.00104618]
[1753276604547,1.21473617,118150.0,118140.0,4.618e-05]
[1753276605740,1.21573617,118150.0,118140.0,4.618e-05]
[1753276606294,1.55473617,118150.0,118140.0,4.618e-05]
[1753276606507,1.55673617,118150.0,118140.0,4.618e-05]
[1753276607141,6.60673617,118150.0,118140.0,4.618e-05]
[1753276607760,6.60773617,118150.0,118140.0,4.618e-05]
[1753276608613,6.62341915,118150.0,118140.0,4.618e-05]
[1753276609034,6.62341936,118150.0,118140.0,4.618e-05]
[1753276609240,6.76989936,118150.0,118140.0,4.618e-05]
[1753276609442,6.75421617,118150.0,118140.0,4.618e-05]
[1753276610052,1.19815468,118150.0,118140.0,4.618e-05]
[1753276610670,1.05163468,118150.0,118140.0,4.618e-05]
[1753276610875,1.19811468,118150.0,118140.0,4.618e-05]
[1753276611692,1.55421617,118150.0,118140.0,4.618e-05]
[1753276614227,1.70421617,118150.0,118140.0,4.618e-05]
[1753276615286,1.26363738,118150.0,118140.0,1e-08]
[1753276615497,1.61973887,118150.0,118140.0,1e-08]
[1753276616537,1.26363738,118150.0,118140.0,1e-08]
[1753276616746,1.61973887,118150.0,118140.0,1e-08]
[1753276617164,1.63539499,118150.0,118140.0,1e-08]
[1753276617369,1.71987229,118150.0,118140.0,1e-08]
[1753276617593,7.12597378,118150.0,118140.0,1e-08]
[1753276617792,1.08075655,118140.0,118130.0,1e-08]
[1753276618002,6.01080236,118140.0,118130.0,0.00013857]
[1753276618206,1.40138115,118140.0,118130.0,0.00013857]
[1753276619236,1.0254701,118130.0,118120.0,0.0002]
[1753276619443,1.46807889,118130.0,118120.0,0.00069267]
[1753276619756,1.0539174,118130.0,118120.0,0.00069267]
[1753276619961,0.9074374,118130.0,118120.0,0.00069267]
[1753276620168,1.13839468,118130.0,118120.0,0.00069267]
[1753276620586,0.99191468,118130.0,118120.0,0.00069267]
[1753276620806,1.13839468,118130.0,118120.0,0.00069267]
[1753276621144,0.99191468,118130.0,118120.0,0.00069267]
[1753276621349,1.13839468,118130.0,118120.0,0.00069267]
[1753276621549,1.13939468,118130.0,118120.0,0.00069267]
[1753276621947,1.16629468,118130.0,118120.0,0.00069267]
[1753276622149,1.19429468,118130.0,118120.0,0.00069267]
[1753276622562,1.16629468,118130.0,118120.0,0.00069267]
[1753276623168,1.19449468,118130.0,118120.0,0.00069267]
[1753276623375,1.19549468,118130.0,118120.0,0.00069267]
[1753276625680,1.04901468,118130.0,118120.0,0.00069267]
[1753276625879,1.19545468,118130.0,118120.0,0.00069267]
[1753276626722,0.99391468,118130.0,118120.0,0.00069267]
[1753276626927,1.13719468,118130.0,118120.0,0.00265267]
[1753276628242,0.99075468,118130.0,118120.0,0.00265267]
[1753276628442,1.13719468,118130.0,118120.0,0.00265267]
[1753276629138,0.9062774,118130.0,118120.0,0.00265267]
[1753276629357,0.7106874,118130.0,118120.0,0.07883169]
[1753276629567,0.5642474,118130.0,118120.0,0.07883169]
[1753276632616,0.5642474,118130.0,118120.0,0.07580169]
[1753276632839,0.6507547,118130.0,118120.0,0.02010169]
[1753276633065,0.6507547,118130.0,118120.0,0.00069267]
[1753276633066,1.02258783,118130.0,118120.0,0.00069267]
[1753276633276,1.38778255,118130.0,118120.0,0.00069267]
[1753276633689,0.99448783,118130.0,118120.0,0.00069267]
[1753276633905,0.81439783,118130.0,118120.0,0.07743169]
[1753276634114,0.73838556,118130.0,118120.0,0.61194574]
[1753276634358,0.73838556,118130.0,118120.0,0.44262641]
[1753276634568,0.72992053,118130.0,118120.0,0.62887759]
[1753276634984,0.7142474,118130.0,118120.0,0.62887759]
[1753276635197,0.32739516,118130.0,118120.0,0.64580887]
[1753276635409,0.31892949,118130.0,118120.0,0.80063433]
[1753276635626,0.33585941,118130.0,118120.0,0.80063433]
[1753276635834,0.002,118130.0,118120.0,1.16582905]
[1753276636049,0.002,118130.0,118120.0,1.19082199]
[1753276636264,0.001,118130.0,118120.0,1.19082199]
[1753276636473,0.43636882,118150.0,118140.0,0.0567]
[1753276636684,0.43636882,118150.0,118140.0,0.07610902]
[1753276637107,0.43636882,118150.0,118140.0,0.07913902]
[1753276637324,0.43637343,118150.0,118140.0,0.25689422]
[1753276637533,0.43637343,118150.0,118140.0,0.26535868]
[1753276637744,0.43637343,118150.0,118140.0,0.07913902]
[1753276638168,0.43637343,118150.0,118140.0,0.22549902]
[1753276638378,0.42068105,118150.0,118140.0,0.22549902]
[1753276638789,0.33620375,118150.0,118140.0,0.22549902]
[1753276639654,0.33820375,118150.0,118140.0,0.07913902]
[1753276639867,0.42471105,118150.0,118140.0,0.01744902]
[1753276640070,0.57419105,118150.0,118130.0,0.0278]
[1753276640287,0.4777701,118130.0,118120.0,0.05649267]
[1753276640514,0.55123991,118130.0,118120.0,0.05845267]
[1753276640726,0.55326991,118130.0,118120.0,0.05845267]
[1753276640937,0.64090721,118130.0,118120.0,0.00069267]
[1753276641153,0.64090721,118130.0,118120.0,0.01814169]
[1753276641821,0.49090721,118130.0,118120.0,0.01814169]
[1753276642262,0.49090721,118130.0,118120.0,0.02014169]
[1753276643546,0.64090721,118130.0,118120.0,0.02014169]
[1753276643752,0.65659996,118130.0,118120.0,0.02014169]
[1753276643997,0.69920721,118130.0,118120.0,0.02114169]
[1753276644417,0.69920721,118130.0,118120.0,0.02014169]
[1753276644851,0.64090721,118130.0,118120.0,0.02014169]
[1753276645056,0.64090721,118130.0,118120.0,0.01814169]
[1753276645411,0.64090721,118130.0,118120.0,0.01914169]
[1753276645769,0.5674374,118130.0,118120.0,0.02114169]
[1753276647223,0.5674374,118130.0,118120.0,0.01914169]
[1753276648763,0.5674374,118130.0,118120.0,0.02114169]
[1753276648968,0.5642774,118130.0,118120.0,0.02114169]
[1753276649325,0.5672274,118130.0,118120.0,0.02114169]
[1753276649530,0.6517047,118130.0,118120.0,0.02114169]
[1753276649754,0.5672274,118130.0,118120.0,0.02114169]
[1753276650823,0.5672274,118130.0,118120.0,0.01914169]
[1753276651761,0.5622474,118130.0,118120.0,0.02114169]
[1753276652923,0.5622474,118130.0,118120.0,0.05044169]
[1753276653140,0.5622474,118130.0,118120.0,0.07874169]
[1753276654150,0.5622474,118130.0,118120.0,0.08173169]
[1753276654780,0.5642774,118130.0,118120.0,0.02114169]
[1753276655958,0.59634243,118130.0,118120.0,0.01914169]
[1753276656173,0.65334243,118130.0,118120.0,0.01914169]
[1753276657995,1.16449652,118130.0,118120.0,0.01914169]
[1753276658455,1.16449652,118130.0,118120.0,0.00169267]
[1753276658669,1.31449652,118130.0,118120.0,0.00169267]
[1753276659740,0.38228515,118120.0,118110.0,0.0002]
[1753276659941,1.46434384,118120.0,118110.0,0.0002]
[1753276660148,0.70221975,118120.0,118110.0,0.0002]
[1753276660353,1.06729384,118120.0,118110.0,0.0002]
[1753276661255,1.06729384,118120.0,118110.0,0.0012]
[1753276661880,1.43236793,118120.0,118110.0,0.0012]
[1753276662510,1.06729384,118120.0,118110.0,0.0012]
[1753276662720,1.06729384,118120.0,118110.0,0.0002]
[1753276663111,1.06929384,118120.0,118110.0,0.0002]
[1753276663396,1.06829384,118120.0,118110.0,0.0002]
[1753276663607,1.06929384,118120.0,118110.0,0.0002]
[1753276663818,1.43436793,118120.0,118110.0,0.0002]
[1753276664031,0.70621975,118120.0,118110.0,0.0002]
[1753276664241,1.07129384,118120.0,118110.0,0.0002]
[1753276666881,1.77636793,118120.0,118110.0,0.0002]
[1753276667099,1.77636793,118120.0,118110.0,1e-08]
[1753276670328,1.80155796,118120.0,118110.0,1e-08]
[1753276672970,1.3890743,118110.0,118100.0,1e-08]
[1753276673180,1.7058589,118110.0,118100.0,1e-08]
[1753276673395,1.7088089,118110.0,118100.0,1e-08]
[1753276674434,1.7108089,118110.0,118100.0,1e-08]
[1753276675071,6.78578944,118110.0,118100.0,1e-08]
[1753276675294,6.78578944,118110.0,118090.0,1e-08]
[1753276675295,0.38311526,118100.0,118090.0,1e-08]
[1753276675513,6.13987449,118100.0,118090.0,1e-08]
[1753276675722,1.22212395,118100.0,118090.0,1e-08]
[1753276675938,0.89797256,118100.0,118090.0,0.06960755]
[1753276676149,1.19797256,118100.0,118090.0,0.12879755]
[1753276676587,1.19797256,118100.0,118090.0,0.12570755]
[1753276676805,1.56800665,118100.0,118090.0,0.06960755]
[1753276677029,1.65344395,118100.0,118090.0,1e-08]
[1753276677239,1.28836986,118100.0,118090.0,1e-08]
[1753276677446,1.17108986,118100.0,118090.0,1e-08]
[1753276677659,1.70864395,118100.0,118090.0,1e-08]
[1753276678556,1.71421707,118100.0,118090.0,1e-08]
[1753276678982,0.84434298,118100.0,118090.0,0.00198001]
[1753276679195,1.14434298,118100.0,118090.0,0.00198001]
[1753276679395,1.65505707,118100.0,118090.0,0.00198001]
[1753276679846,1.65701707,118100.0,118090.0,0.00198001]
[1753276680058,1.71667707,118100.0,118090.0,1e-08]
[1753276681082,1.68737707,118100.0,118090.0,1e-08]
[1753276682779,1.71547707,118100.0,118090.0,1e-08]
[1753276683212,1.73112279,118100.0,118090.0,1e-08]
[1753276683634,1.88112279,118100.0,118090.0,1e-08]
[1753276684063,1.80997707,118100.0,118090.0,0.00198001]
[1753276684310,1.82266637,118100.0,118090.0,0.00198001]
[1753276684732,1.82562637,118100.0,118090.0,0.00198001]
[1753276684934,1.82562637,118100.0,118090.0,1e-08]
[1753276687071,1.46055228,118100.0,118090.0,1e-08]
[1753276687292,1.82562637,118100.0,118090.0,1e-08]
[1753276687505,1.88302637,118100.0,118090.0,1e-08]
[1753276689046,1.82266637,118100.0,118090.0,0.00198001]
[1753276690129,1.30563228,118100.0,118090.0,0.06048001]
[1753276690344,1.30563228,118100.0,118090.0,0.06357001]
[1753276690771,0.88091498,118100.0,118090.0,0.06357001]
[1753276690984,0.73551498,118100.0,118090.0,0.06357001]
[1753276691203,0.88087498,118100.0,118090.0,0.06357001]
[1753276691862,1.25086907,118100.0,118090.0,0.00198001]
[1753276692085,1.30626907,118100.0,118090.0,1e-08]
[1753276692311,1.73074637,118100.0,118090.0,1e-08]
[1753276693367,1.39074637,118100.0,118090.0,1e-08]
[1753276694012,1.54074637,118100.0,118090.0,1e-08]
[1753276694234,1.88074637,118100.0,118090.0,1e-08]
[1753276694694,6.93074637,118100.0,118090.0,1e-08]
[1753276695350,6.9226262,118100.0,118090.0,1e-08]
[1753276695745,6.9226262,118100.0,118070.0,0.0002]
[1753276695746,0.6,118080.0,118070.0,0.0002]
[1753276696007,1.8434559,118080.0,118070.0,0.0002]
[1753276696436,1.8464159,118080.0,118070.0,0.0002]
[1753276696655,1.48946198,118080.0,118070.0,0.0002]
[1753276696872,1.8464159,118080.0,118070.0,0.0002]
[1753276697095,1.8464159,118080.0,118070.0,0.00033855]
[1753276697753,1.48329933,118060.0,118050.0,0.0002]
[1753276697969,1.87150323,118060.0,118050.0,0.00024615]
[1753276698179,1.87446323,118060.0,118050.0,0.00024615]
[1753276698624,1.51750931,118060.0,118050.0,0.00024615]
[1753276698831,1.87446323,118060.0,118050.0,0.00024615]
[1753276700401,1.87546323,118060.0,118050.0,0.00024615]
[1753276701712,1.87746323,118060.0,118050.0,0.00024615]
[1753276702152,0.51789057,118050.0,118040.0,0.0002]
[1753276702372,0.90605447,118050.0,118040.0,0.00024615]
[1753276702584,0.90901447,118050.0,118040.0,0.00024615]
[1753276703021,0.63639277,118030.0,118020.0,0.0002]
[1753276703243,0.88363937,118030.0,118020.0,0.00024611]
[1753276703427,0.96811667,118030.0,118020.0,0.00024611]
[1753276703698,0.97107667,118030.0,118020.0,0.00024611]
[1753276704779,0.97107667,118030.0,118020.0,0.00324611]
[1753276705230,1.31107667,118030.0,118020.0,0.00324611]
[1753276705902,1.31107667,118030.0,118020.0,0.00024611]
[1753276707428,1.31107667,118030.0,118020.0,0.00235611]
[1753276707683,1.31107667,118030.0,118020.0,0.00335611]
[1753276708340,1.30811667,118030.0,118020.0,0.00335611]
[1753276708549,1.22167937,118030.0,118020.0,0.06105611]
[1753276708768,1.22363937,118030.0,118020.0,0.00335611]
[1753276709192,1.22676937,118030.0,118020.0,0.00124611]
[1753276709429,1.22668937,118030.0,118020.0,0.00024611]
[1753276709645,1.16608667,118030.0,118020.0,0.00024611]
[1753276709846,1.34072667,118030.0,118020.0,0.00024611]
[1753276710059,1.36922667,118030.0,118020.0,0.00024611]
[1753276710252,1.31112667,118030.0,118020.0,0.00024611]
[1753276710709,1.31112667,118030.0,118020.0,0.00235611]
[1753276711140,1.30799667,118030.0,118020.0,0.00235611]
[1753276711359,1.31112667,118030.0,118020.0,0.00235611]
[1753276711574,1.31112667,118030.0,118020.0,0.00024611]
[1753276712914,1.37012667,118030.0,118020.0,0.00024611]
[1753276713123,1.72708059,118030.0,118020.0,1e-08]
[1753276714183,0.78642436,118010.0,118000.0,0.0002]
[1753276714418,1.11798824,118010.0,118000.0,0.00024611]
[1753276714630,1.11798824,118010.0,118000.0,0.00235611]
[1753276715054,1.14624767,118010.0,118000.0,0.00024611]
[1753276715485,1.12111824,118010.0,118000.0,0.00024611]
[1753276715691,1.14941824,118010.0,118000.0,0.00024611]
[1753276716126,1.12111824,118010.0,118000.0,0.00024611]
[1753276716558,1.50156894,118010.0,118000.0,0.00024611]
[1753276716773,1.85852286,118010.0,118000.0,0.00024611]
[1753276717194,1.50156894,118010.0,118000.0,0.00024611]
[1753276717404,1.86753843,118010.0,118000.0,0.00024611]
[1753276717819,0.63645597,117990.0,117980.0,0.077]
[1753276718027,0.95233057,117990.0,117980.0,0.07960262]
[1753276718673,0.95037057,117990.0,117980.0,0.08271262]
[1753276718925,0.41585327,117990.0,117980.0,0.44868211]
[1753276719131,0.33751868,117990.0,117980.0,0.51630965]
[1753276719378,0.3544686,117990.0,117980.0,0.36273688]
[1753276719589,0.0315675,117990.0,117980.0,0.73667886]
[1753276719801,0.2010739,117990.0,117980.0,0.71125191]
[1753276720007,0.19259897,117990.0,117980.0,0.63514836]
[1753276720220,0.19259897,117990.0,117980.0,0.6436243]
[1753276720425,0.02309279,117990.0,117980.0,0.66050038]
[1753276720673,0.00614271,117990.0,117980.0,0.66050038]
[1753276720884,0.16461735,117990.0,117980.0,0.66150038]
[1753276721100,0.16694935,117990.0,117980.0,0.66141901]
[1753276721307,0.15,117990.0,117980.0,0.65459633]
[1753276721541,0.16559227,117990.0,117980.0,0.65449568]
[1753276721758,0.16559227,117990.0,117980.0,1.07889883]
[1753276721949,0.16559227,117990.0,117980.0,1.08089883]
[1753276722400,0.16559227,117990.0,117980.0,1.08079167]
[1753276722839,0.01559227,117990.0,117980.0,1.08079167]
[1753276723723,0.01559227,117990.0,117980.0,1.07879167]
[1753276724157,0.01559227,117990.0,117980.0,1.07579167]
[1753276724377,0.01694814,118000.0,117990.0,0.2532309]
[1753276724594,0.04104569,118000.0,117990.0,0.75736771]
[1753276724801,0.03257141,118000.0,117990.0,0.76047771]
[1753276725015,0.02409727,118000.0,117990.0,0.76047771]
[1753276725228,0.03257141,118000.0,117990.0,0.76047771]
[1753276725866,0.01563441,118000.0,117990.0,0.76047771]
[1753276726319,0.01563441,118000.0,117990.0,0.75200292]
[1753276726530,0.04105683,118000.0,117990.0,0.76895264]
[1753276726716,0.04953118,118000.0,117990.0,0.76895264]
[1753276727323,0.04953111,118000.0,117990.0,0.76995264]
[1753276727529,0.45800554,118000.0,117990.0,0.76147785]
[1753276727693,0.52819337,118000.0,117990.0,0.7784275]
[1753276727893,0.43258247,118000.0,117990.0,0.7784275]
[1753276728117,0.44105675,118000.0,117990.0,0.7784275]
[1753276728326,0.44953118,118000.0,117990.0,0.7784275]
[1753276728871,0.44105675,118000.0,117990.0,0.56654681]
[1753276729079,0.44953125,118000.0,117990.0,0.2094]
[1753276729288,0.67960606,118000.0,117990.0,0.2094]
[1753276729513,0.67960606,118000.0,117990.0,0.22684902]
[1753276729863,0.60207471,118000.0,117990.0,0.22684902]
[1753276730090,0.00630495,118010.0,118000.0,0.25081497]
[1753276730275,0.16694419,118030.0,118020.0,0.25925795]
[1753276730473,0.17541654,118030.0,118020.0,0.76642476]
[1753276730717,0.01694383,118030.0,118020.0,0.77489761]
[1753276730992,0.55,118040.0,118030.0,0.23622071]
[1753276731158,0.74484833,118040.0,118030.0,0.61292669]
[1753276731370,0.73637713,118040.0,118030.0,0.61603669]
[1753276731545,0.73637713,118040.0,118030.0,0.26736223]
[1753276731750,0.73637713,118040.0,118030.0,0.27588054]
[1753276732153,0.56694304,118040.0,118030.0,0.29282473]
[1753276732360,0.56694261,118040.0,118030.0,0.64997103]
[1753276732564,0.1584712,118040.0,118030.0,0.64997103]
[1753276732894,0.0148081,118040.0,118030.0,0.64997103]
[1753276733092,0.0063369,118040.0,118030.0,0.64997103]
[1753276733335,0.01480803,118040.0,118030.0,0.64997103]
[1753276733546,0.10984939,118040.0,118030.0,0.64997103]
[1753276733753,0.11832109,118040.0,118030.0,0.64997103]
[1753276733963,0.28775518,118040.0,118030.0,0.64997103]
[1753276734383,0.27928405,118040.0,118030.0,0.64149912]
[1753276734528,0.25386988,118040.0,118030.0,0.08101513]
[1753276734740,0.25386988,118040.0,118030.0,0.14480611]
[1753276734741,0.25582988,118040.0,118030.0,0.14480611]
[1753276734952,0.25895988,118040.0,118030.0,0.14480611]
[1753276735354,0.25895988,118040.0,118030.0,0.14580611]
[1753276735779,0.70720975,118040.0,118030.0,0.00104611]
[1753276736364,0.70720975,118040.0,118030.0,0.00204611]
[1753276737370,0.70720975,118040.0,118030.0,4.611e-05]
[1753276738901,0.67930975,118040.0,118030.0,4.611e-05]
[1753276739753,0.70740975,118040.0,118030.0,4.611e-05]
[1753276740968,0.85740975,118040.0,118030.0,4.611e-05]
[1753276741349,1.55455656,118040.0,118030.0,4.611e-05]
[1753276741546,6.60455656,118040.0,118030.0,1e-08]
[1753276742021,6.62019234,118040.0,118030.0,1e-08]
[1753276742225,1.35776553,118040.0,118030.0,1e-08]
[1753276742438,1.71591234,118040.0,118030.0,1e-08]
[1753276742640,1.35776553,118040.0,118030.0,1e-08]
[1753276743275,1.71591234,118040.0,118030.0,1e-08]
[1753276743452,1.35876618,118040.0,118030.0,1e-08]
[1753276743879,1.35776618,118040.0,118030.0,1e-08]
[1753276744300,1.36276618,118040.0,118030.0,1e-08]
[1753276744473,6.77391299,118040.0,118030.0,1e-08]
[1753276744653,6.76891299,118040.0,118030.0,1e-08]
[1753276745069,6.77291299,118040.0,118030.0,1e-08]
[1753276745273,0.33642436,118010.0,118000.0,0.06754282]
[1753276745494,0.51919809,118010.0,118000.0,0.0697192]
[1753276745718,0.52234809,118010.0,118000.0,0.0675641]
[1753276746351,0.52234809,118010.0,118000.0,0.0674547]
[1753276746563,0.43860809,118010.0,118000.0,0.06872045]
[1753276746922,0.43653809,118010.0,118000.0,0.06822486]
[1753276747320,0.43653809,118010.0,118000.0,0.06764188]
[1753276747522,0.43653809,118010.0,118000.0,0.06707297]
[1753276747744,0.67101539,118010.0,118000.0,0.06707297]
[1753276747952,0.67101539,118010.0,118000.0,0.06634533]
[1753276748367,0.67101539,118010.0,118000.0,0.00217638]
[1753276750144,0.65453158,118010.0,118000.0,0.00217638]
[1753276751225,0.65660158,118010.0,118000.0,0.00217638]
[1753276752095,0.67224216,118010.0,118000.0,0.00217638]
[1753276752331,0.57005428,118010.0,118000.0,0.00217638]
[1753276752966,0.57005428,118010.0,118000.0,0.03260638]
[1753276753384,0.27005428,118010.0,118000.0,0.03240638]
[1753276753649,0.42005428,118010.0,118000.0,0.59601928]
[1753276753855,0.32794844,118020.0,118000.0,0.60341658]
[1753276754075,0.41242574,118020.0,118010.0,0.0555]
[1753276754283,0.41242574,118020.0,118010.0,0.06081]
[1753276754497,0.41242574,118020.0,118010.0,0.05758]
[1753276754693,0.41449574,118020.0,118010.0,0.00208]
[1753276755362,0.41549574,118020.0,118010.0,0.17155716]
[1753276755572,0.48777563,118020.0,118010.0,0.00208]
[1753276755776,0.49092563,118020.0,118010.0,0.01744902]
[1753276756429,0.48877563,118020.0,118010.0,0.01952902]
[1753276757500,0.41549574,118020.0,118010.0,0.01952902]
[1753276757715,0.41342574,118020.0,118010.0,0.05015902]
[1753276757925,0.41342574,118020.0,118010.0,0.07695902]
[1753276759223,0.41442574,118020.0,118010.0,0.04692902]
[1753276760313,0.41649574,118020.0,118010.0,0.01952902]
[1753276760533,0.69671063,118020.0,118010.0,0.01744902]
[1753276760744,0.64271063,118020.0,118010.0,0.01744902]
[1753276760953,0.17795087,118010.0,118000.0,9.638e-05]
[1753276761164,0.26449817,118010.0,118000.0,0.0196254]
[1753276761637,0.32334817,118010.0,118000.0,9.638e-05]
[1753276761857,0.55250547,118010.0,118000.0,9.638e-05]
[1753276763126,0.55250547,118010.0,118000.0,1e-08]
[1753276763127,0.90965228,118010.0,118000.0,1e-08]
[1753276764416,1.24965228,118010.0,118000.0,1e-08]
[1753276765727,1.25165228,118010.0,118000.0,1e-08]
[1753276765934,1.25365228,118010.0,118000.0,1e-08]
[1753276767226,1.26930564,118010.0,118000.0,1e-08]
[1753276767439,1.25365228,118010.0,118000.0,1e-08]
[1753276767647,1.2693068,118010.0,118000.0,1e-08]
[1753276768501,1.29368081,118010.0,118000.0,1e-08]
[1753276769176,1.31971968,118010.0,118000.0,1e-08]
[1753276769389,1.31971766,118010.0,118000.0,1e-08]
[1753276769614,1.12645597,117990.0,117980.0,0.00381451]
[1753276769825,1.12645597,117990.0,117980.0,0.00430713]
[1753276769826,1.40353097,117990.0,117980.0,0.00430713]
[1753276770039,1.43565097,117990.0,117980.0,0.00430713]
[1753276771793,1.43565097,117990.0,117930.0,0.0002]
[1753276771794,0.21367852,117940.0,117930.0,0.0002]
[1753276772023,0.15,117940.0,117930.0,0.75611688]
[1753276772219,0.46953469,117970.0,117960.0,0.19498046]
[1753276772220,0.15,117970.0,117960.0,0.19498046]
[1753276772445,0.24295194,117990.0,117980.0,0.17799611]
[1753276772650,0.2344773,117990.0,117980.0,0.61168415]
[1753276773032,0.18645597,117990.0,117980.0,0.07703902]
[1753276773267,0.18694849,117990.0,117980.0,0.07703902]
[1753276773479,0.18694849,117990.0,117980.0,0.24867827]
[1753276773692,0.18694849,117990.0,117980.0,0.07703902]
[1753276773904,0.17847356,117990.0,117980.0,0.26351107]
[1753276774120,0.02591782,117990.0,117980.0,0.64060918]
[1753276774339,0.02591782,117990.0,117980.0,0.27498693]
[1753276774549,0.01744216,117990.0,117980.0,0.43909816]
[1753276774765,0.01744209,117990.0,117980.0,0.43909816]
[1753276774978,0.00049252,117990.0,117980.0,0.79824497]
[1753276776047,0.00049252,117990.0,117980.0,0.88272227]
[1753276776695,0.00049252,117990.0,117980.0,0.52557546]
[1753276776943,0.00049252,117990.0,117980.0,0.44109816]
[1753276776944,0.00896716,117990.0,117980.0,0.44109816]
[1753276777170,0.00896716,117990.0,117980.0,0.44325816]
[1753276777350,0.00049252,117990.0,117980.0,0.44325816]
[1753276777582,0.00049252,117990.0,117980.0,0.80040497]
[1753276777797,0.00049252,117990.0,117980.0,0.44325816]
[1753276778039,0.00049252,117990.0,117980.0,0.80040497]
[1753276778253,0.00049252,117990.0,117980.0,0.88488227]
[1753276779099,0.00049252,117990.0,117980.0,0.52773546]
[1753276779321,0.00049252,117990.0,117980.0,0.88488227]
[1753276779753,0.00896723,117990.0,117980.0,0.80044497]
[1753276779976,0.01744202,117990.0,117980.0,0.80044497]
[1753276780403,0.00049252,117990.0,117980.0,0.80044497]
[1753276780644,0.00049252,117990.0,117980.0,0.88492227]
[1753276780867,0.01744195,117990.0,117980.0,0.88492227]
[1753276781078,0.22518444,117990.0,117980.0,0.00716]
[1753276781285,0.19206877,117990.0,117980.0,0.15248]
[1753276781678,0.19206877,117990.0,117980.0,0.15256]
[1753276782352,0.19206877,117990.0,117980.0,0.15248]
[1753276782562,0.00896731,117990.0,117980.0,0.34958742]
[1753276782774,0.02591753,117990.0,117980.0,0.38107742]
[1753276782988,0.19542342,117990.0,117980.0,0.36412619]
[1753276783201,0.23648958,117990.0,117980.0,0.32416025]
[1753276783408,0.22801458,117990.0,117980.0,0.15464]
[1753276784733,0.22801458,117990.0,117980.0,0.00716]
[1753276784956,0.23313458,117990.0,117980.0,0.15256]
[1753276785171,0.31761188,117990.0,117980.0,0.15256]
[1753276786454,0.31761188,117990.0,117980.0,0.14956]
[1753276786890,0.31761188,117990.0,117980.0,0.15056]
[1753276787765,0.26807093,117990.0,117980.0,0.14856]
[1753276788193,0.26807093,117990.0,117980.0,0.003]
[1753276789675,0.41295093,117990.0,117980.0,0.07278754]
[1753276789881,0.32847363,117990.0,117980.0,0.27778373]
[1753276790088,0.32847363,117990.0,117980.0,0.28625959]
[1753276790299,0.32847363,117990.0,117980.0,0.29473538]
[1753276790516,0.32847363,117990.0,117980.0,0.22006754]
[1753276790724,0.40447571,117990.0,117980.0,0.3980638]
[1753276791184,0.40447571,117990.0,117980.0,0.40653966]
[1753276791373,0.31999841,117990.0,117980.0,0.41838779]
[1753276791634,0.31999841,117990.0,117980.0,0.39806373]
[1753276791839,0.31999841,117990.0,117980.0,0.38958779]
[1753276792081,0.31999841,117990.0,117980.0,0.3980638]
[1753276792294,0.31999841,117990.0,117980.0,0.40653974]
[1753276792535,0.31999841,117990.0,117980.0,0.43393974]
[1753276792753,0.31999841,117990.0,117980.0,0.4424156]
[1753276792963,0.31999841,117990.0,117980.0,0.43393974]
[1753276793171,0.40447571,117990.0,117980.0,0.4424156]
[1753276793391,0.2519199,117990.0,117980.0,0.45936697]
[1753276793595,0.1674426,117990.0,117980.0,0.46255647]
[1753276793836,0.00049252,117990.0,117980.0,0.81970328]
[1753276794052,0.02591731,117990.0,117980.0,0.49055647]
[1753276794267,0.02591716,117990.0,117980.0,0.49055647]
[1753276794488,0.00049252,117990.0,117980.0,0.9496296]
[1753276794712,0.01744231,117990.0,117980.0,0.8651523]
[1753276794926,0.00896731,117990.0,117980.0,0.8651523]
[1753276795149,0.01744217,117990.0,117980.0,0.8651523]
[1753276795581,0.00049252,117990.0,117980.0,0.8631523]
[1753276796039,0.00896723,117990.0,117980.0,0.8671523]
[1753276796256,0.00896723,117990.0,117980.0,0.51000549]
[1753276796477,0.00896723,117990.0,117980.0,0.8671523]
[1753276796690,0.01744216,117990.0,117980.0,0.79952476]
[1753276796904,0.02591731,117990.0,117980.0,0.79952476]
[1753276797117,0.02591731,117990.0,117980.0,0.44237795]
[1753276797577,0.02591731,117990.0,117980.0,0.44237766]
[1753276797796,0.03439253,117990.0,117980.0,0.44237766]
[1753276798229,0.05562839,117990.0,117980.0,0.44137766]
[1753276798440,0.21237371,117990.0,117980.0,0.19612927]
[1753276798693,0.19542407,117990.0,117980.0,0.34948528]
[1753276798918,0.33895892,117990.0,117980.0,0.154]
[1753276799143,0.34213892,117990.0,117980.0,0.15184]
[1753276799359,0.41107197,117990.0,117980.0,0.15184]